[Event "December 5 Late 2023"]
[Site "https://www.chess.com"]
[Date "2023.12.05"]
[Round "6"]
[White "Kashefi, Amir Hosein"]
[Black "Zeltsan, Joseph"]
[Result "1-0"]
[Board "47"]
[TimeControl "180+1"]
[WhiteFideId "12557935"]
[BlackFideId "30932980"]
[WhiteElo "2543"]
[BlackElo "2710"]
[WhiteTeam "IRI"]
[BlackTeam "USA"]
[WhiteClock "0:00:03"]
[BlackClock "0:00:00"]

1. Nf3 {[%clk 0:03:00]}  Nf6 {[%clk 0:02:59]} 2. g3 {[%clk 0:03:01]}  g6 {[%clk 0:03:00]} 3. Bg2 {[%clk 0:03:02]}  Bg7 {[%clk 0:03:00]} 4. O-O {[%clk 0:03:03]}  O-O {[%clk 0:03:01]} 5. b3 {[%clk 0:03:01]}  d5 {[%clk 0:03:02]} 6. Bb2 {[%clk 0:03:02]}  c5 {[%clk 0:03:01]} 7. e3 {[%clk 0:03:01]}  b6 {[%clk 0:03:01]} 8. d3 {[%clk 0:03:01]}  Bb7 {[%clk 0:03:02]} 9. Nbd2 {[%clk 0:03:01]}  Nc6 {[%clk 0:03:02]} 10. c4 {[%clk 0:03:01]}  dxc4 {[%clk 0:02:45]} 11. Nxc4 {[%clk 0:03:01]}  Qc7 {[%clk 0:02:41]} 12. a3 {[%clk 0:03:00]}  Rad8 {[%clk 0:02:41]} 13. Qc2 {[%clk 0:02:59]}  Rd7 {[%clk 0:02:21]} 14. Rfd1 {[%clk 0:02:58]}  Rfd8 {[%clk 0:02:21]} 15. Rac1 {[%clk 0:02:53]}  Qc8 {[%clk 0:02:10]} 16. Bh3 {[%clk 0:02:50]}  e6 {[%clk 0:02:03]} 17. Bg2 {[%clk 0:02:48]}  Qa8 {[%clk 0:02:03]} 18. Bc3 {[%clk 0:02:37]}  b5 {[%clk 0:01:48]} 19. Nb2 {[%clk 0:02:23]}  b4 {[%clk 0:01:48]} 20. axb4 {[%clk 0:02:14]}  cxb4 {[%clk 0:01:48]} 21. Bxf6 {[%clk 0:02:00]}  Bxf6 {[%clk 0:01:46]} 22. Qe2 {[%clk 0:01:59]}  Ne7 {[%clk 0:01:38]} 23. Nc4 {[%clk 0:01:57]}  Nd5 {[%clk 0:01:34]} 24. Nfe5 {[%clk 0:01:42]}  Rc7 {[%clk 0:01:26]} 25. Bxd5 {[%clk 0:01:01]}  exd5 {[%clk 0:01:18]} 26. Ng4 {[%clk 0:01:01]}  Bg7 {[%clk 0:01:15]} 27. Na5 {[%clk 0:00:52]}  Rxc1 {[%clk 0:01:15]} 28. Rxc1 {[%clk 0:00:53]}  h5 {[%clk 0:01:16]} 29. Rc7 {[%clk 0:00:42]}  Ba6 {[%clk 0:00:52]} 30. Qf3 {[%clk 0:00:41]}  f5 {[%clk 0:00:44]} 31. Nc6 {[%clk 0:00:30]}  hxg4 {[%clk 0:00:42]} 32. Qf4 {[%clk 0:00:13]}  Re8 {[%clk 0:00:20]} 33. Qd6 {[%clk 0:00:12]}  Kh7 {[%clk 0:00:15]} 34. Ne7 {[%clk 0:00:09]}  Rxe7 {[%clk 0:00:16]} 35. Rxe7 {[%clk 0:00:09]}  Qf8 {[%clk 0:00:13]} 36. Rxg7+ {[%clk 0:00:06]}  Kxg7 {[%clk 0:00:13]} 37. Qxa6 {[%clk 0:00:07]}  Qc5 {[%clk 0:00:13]} 38. d4 {[%clk 0:00:04]}  Qb6 {[%clk 0:00:10]} 39. Qxb6 {[%clk 0:00:02]}  axb6 {[%clk 0:00:11]} 40. Kg2 {[%clk 0:00:02]}  Kf6 {[%clk 0:00:12]} 41. h3 {[%clk 0:00:01]}  gxh3+ {[%clk 0:00:11]} 42. Kxh3 {[%clk 0:00:02]}  Kg5 {[%clk 0:00:11]} 43. f3 {[%clk 0:00:02]}  Kh5 {[%clk 0:00:12]} 44. g4+ {[%clk 0:00:02]}  fxg4+ {[%clk 0:00:12]} 45. fxg4+ {[%clk 0:00:03]}  Kg5 {[%clk 0:00:12]} 46. Kg3 {[%clk 0:00:03]}  Kf6 {[%clk 0:00:13]} 47. Kf3 {[%clk 0:00:02]}  Kg5 {[%clk 0:00:13]} 48. e4 {[%clk 0:00:01]}  dxe4+ {[%clk 0:00:07]} 49. Kxe4 {[%clk 0:00:02]}  Kf6 {[%clk 0:00:08]} 50. d5 {[%clk 0:00:03]}  g5 {[%clk 0:00:06]} 51. Kd4 {[%clk 0:00:03]}  Ke7 {[%clk 0:00:06]} 52. Ke5 {[%clk 0:00:03]}  Kd7 {[%clk 0:00:00]} 53. d6 {[%clk 0:00:03]} 1-0

[Event "December 5 Late 2023"]
[Site "https://www.chess.com"]
[Date "2023.12.05"]
[Round "6"]
[White "Korchynskyi, Mykola"]
[Black "Wafa, Hamed"]
[Result "0-1"]
[Board "48"]
[TimeControl "180+1"]
[WhiteFideId "34138005"]
[BlackFideId "10628452"]
[WhiteElo "2539"]
[BlackElo "2707"]
[WhiteTeam "UKR"]
[BlackTeam "EGY"]
[WhiteClock "0:00:02"]
[BlackClock "0:01:13"]

1. d4 {[%clk 0:03:00]}  Nf6 {[%clk 0:02:55]} 2. c4 {[%clk 0:02:59]}  e6 {[%clk 0:02:55]} 3. Nc3 {[%clk 0:02:56]}  Bb4 {[%clk 0:02:54]} 4. Qc2 {[%clk 0:02:56]}  O-O {[%clk 0:02:53]} 5. a3 {[%clk 0:02:55]}  Bxc3+ {[%clk 0:02:50]} 6. Qxc3 {[%clk 0:02:56]}  b6 {[%clk 0:02:50]} 7. Bg5 {[%clk 0:02:56]}  Bb7 {[%clk 0:02:48]} 8. e3 {[%clk 0:02:56]}  d6 {[%clk 0:02:47]} 9. f3 {[%clk 0:02:50]}  c5 {[%clk 0:02:43]} 10. dxc5 {[%clk 0:02:46]}  bxc5 {[%clk 0:02:42]} 11. O-O-O {[%clk 0:02:45]}  d5 {[%clk 0:02:32]} 12. Nh3 {[%clk 0:02:39]}  Nbd7 {[%clk 0:02:28]} 13. Nf4 {[%clk 0:02:32]}  h6 {[%clk 0:02:27]} 14. h4 {[%clk 0:02:08]}  Qc7 {[%clk 0:02:12]} 15. g4 {[%clk 0:01:46]}  d4 {[%clk 0:02:10]} 16. Qd2 {[%clk 0:01:46]}  Bxf3 {[%clk 0:02:07]} 17. Bg2 {[%clk 0:01:37]}  Bxd1 {[%clk 0:02:03]} 18. Bxa8 {[%clk 0:01:12]}  Rxa8 {[%clk 0:01:53]} 19. Qxd1 {[%clk 0:01:06]}  hxg5 {[%clk 0:01:48]} 20. hxg5 {[%clk 0:01:06]}  dxe3 {[%clk 0:01:42]} 21. Qf3 {[%clk 0:01:07]}  Rb8 {[%clk 0:01:33]} 22. Qh3 {[%clk 0:01:05]}  Kf8 {[%clk 0:01:31]} 23. Rf1 {[%clk 0:00:13]}  Qe5 {[%clk 0:01:24]} 24. Nd3 {[%clk 0:00:09]}  Qd4 {[%clk 0:01:22]} 25. gxf6 {[%clk 0:00:06]}  Qxc4+ {[%clk 0:01:19]} 26. Kb1 {[%clk 0:00:03]}  Qxd3+ {[%clk 0:01:20]} 27. Ka1 {[%clk 0:00:04]}  gxf6 {[%clk 0:01:18]} 28. g5 {[%clk 0:00:04]}  e2 {[%clk 0:01:14]} 29. Rb1 {[%clk 0:00:02]}  Qxb1+ {[%clk 0:01:13]} 0-1

[Event "December 5 Late 2023"]
[Site "https://www.chess.com"]
[Date "2023.12.05"]
[Round "6"]
[White "Sturt, Raven"]
[Black "Kovalevsky, Stanislav"]
[Result "1-0"]
[Board "59"]
[TimeControl "180+1"]
[WhiteFideId "2007304"]
[BlackFideId "13508598"]
[WhiteElo "2650"]
[BlackElo "2505"]
[WhiteTeam "USA"]
[BlackTeam "FID"]
[WhiteClock "0:01:31"]
[BlackClock "0:00:30"]

1. f4 {[%clk 0:03:00]}  d5 {[%clk 0:02:59]} 2. Nf3 {[%clk 0:03:01]}  h5 {[%clk 0:03:00]} 3. e3 {[%clk 0:03:00]}  h4 {[%clk 0:03:00]} 4. c4 {[%clk 0:02:58]}  c6 {[%clk 0:02:59]} 5. Nc3 {[%clk 0:02:56]}  Nf6 {[%clk 0:02:59]} 6. Ne5 {[%clk 0:02:41]}  Nbd7 {[%clk 0:02:55]} 7. d4 {[%clk 0:02:40]}  Nxe5 {[%clk 0:02:52]} 8. fxe5 {[%clk 0:02:40]}  Bg4 {[%clk 0:02:52]} 9. Qb3 {[%clk 0:02:37]}  Ne4 {[%clk 0:02:42]} 10. cxd5 {[%clk 0:02:34]}  Nxc3 {[%clk 0:02:41]} 11. bxc3 {[%clk 0:02:33]}  Qxd5 {[%clk 0:02:29]} 12. Qxb7 {[%clk 0:02:31]}  Rd8 {[%clk 0:02:29]} 13. Rb1 {[%clk 0:02:14]}  h3 {[%clk 0:02:23]} 14. Rg1 {[%clk 0:02:14]}  e6 {[%clk 0:02:03]} 15. Rb5 {[%clk 0:01:56]}  Qd7 {[%clk 0:01:22]} 16. Qxd7+ {[%clk 0:01:55]}  Rxd7 {[%clk 0:01:22]} 17. Rb8+ {[%clk 0:01:55]}  Rd8 {[%clk 0:01:22]} 18. Rxd8+ {[%clk 0:01:55]}  Kxd8 {[%clk 0:01:23]} 19. gxh3 {[%clk 0:01:44]}  Bxh3 {[%clk 0:01:22]} 20. Bd3 {[%clk 0:01:44]}  g6 {[%clk 0:01:17]} 21. e4 {[%clk 0:01:44]}  Rh4 {[%clk 0:01:01]} 22. Bg5+ {[%clk 0:01:43]}  Be7 {[%clk 0:01:00]} 23. Bxh4 {[%clk 0:01:43]}  Bxh4+ {[%clk 0:01:01]} 24. Ke2 {[%clk 0:01:43]}  c5 {[%clk 0:01:00]} 25. Kf3 {[%clk 0:01:42]}  cxd4 {[%clk 0:00:57]} 26. cxd4 {[%clk 0:01:43]}  g5 {[%clk 0:00:55]} 27. Bf1 {[%clk 0:01:33]}  g4+ {[%clk 0:00:51]} 28. Ke2 {[%clk 0:01:31]}  Kc7 {[%clk 0:00:30]} 29. Bxh3 {[%clk 0:01:31]} 1-0

[Event "December 5 Late 2023"]
[Site "https://www.chess.com"]
[Date "2023.12.05"]
[Round "6"]
[White "Cieslak, Patryk"]
[Black "Lin, Bryan Enming"]
[Result "1-0"]
[Board "60"]
[TimeControl "180+1"]
[WhiteFideId "21078882"]
[BlackFideId "30987121"]
[WhiteElo "2646"]
[BlackElo "2504"]
[WhiteTeam "POL"]
[BlackTeam "USA"]
[WhiteClock "0:00:26"]
[BlackClock "0:00:09"]

1. e4 {[%clk 0:03:00]}  e5 {[%clk 0:02:58]} 2. Nf3 {[%clk 0:02:59]}  Nc6 {[%clk 0:02:58]} 3. Bb5 {[%clk 0:03:00]}  a6 {[%clk 0:02:59]} 4. Ba4 {[%clk 0:03:00]}  Nf6 {[%clk 0:02:59]} 5. O-O {[%clk 0:03:01]}  Be7 {[%clk 0:02:59]} 6. Re1 {[%clk 0:03:00]}  b5 {[%clk 0:03:00]} 7. Bb3 {[%clk 0:03:00]}  d6 {[%clk 0:03:01]} 8. c3 {[%clk 0:03:01]}  O-O {[%clk 0:03:01]} 9. h3 {[%clk 0:03:01]}  a5 {[%clk 0:03:00]} 10. d4 {[%clk 0:02:47]}  Bd7 {[%clk 0:02:57]} 11. Na3 {[%clk 0:02:46]}  a4 {[%clk 0:02:21]} 12. Bc2 {[%clk 0:02:42]}  Qb8 {[%clk 0:02:21]} 13. Bd3 {[%clk 0:02:40]}  b4 {[%clk 0:02:21]} 14. Nc2 {[%clk 0:02:36]}  bxc3 {[%clk 0:01:52]} 15. bxc3 {[%clk 0:02:34]}  exd4 {[%clk 0:01:52]} 16. cxd4 {[%clk 0:02:34]}  d5 {[%clk 0:01:52]} 17. exd5 {[%clk 0:02:09]}  Nxd5 {[%clk 0:01:52]} 18. Ne3 {[%clk 0:02:09]}  Be6 {[%clk 0:01:24]} 19. Be4 {[%clk 0:01:43]}  Nc3 {[%clk 0:01:21]} 20. Qc2 {[%clk 0:01:43]}  Nxe4 {[%clk 0:01:20]} 21. Qxe4 {[%clk 0:01:44]}  Bf6 {[%clk 0:01:18]} 22. Qxc6 {[%clk 0:01:36]}  Rd8 {[%clk 0:01:13]} 23. Ba3 {[%clk 0:01:34]}  Qc8 {[%clk 0:01:09]} 24. Rac1 {[%clk 0:01:32]}  Bxh3 {[%clk 0:01:02]} 25. gxh3 {[%clk 0:01:30]}  Qxh3 {[%clk 0:01:03]} 26. Nh2 {[%clk 0:01:30]}  Ra5 {[%clk 0:00:59]} 27. Qf3 {[%clk 0:01:10]}  Qh6 {[%clk 0:00:49]} 28. Neg4 {[%clk 0:01:05]}  Qg6 {[%clk 0:00:49]} 29. Kh1 {[%clk 0:01:04]}  Bxd4 {[%clk 0:00:48]} 30. Rcd1 {[%clk 0:01:01]}  Rf5 {[%clk 0:00:37]} 31. Rxd4 {[%clk 0:00:55]}  Rb8 {[%clk 0:00:33]} 32. Qb7 {[%clk 0:00:47]}  h5 {[%clk 0:00:28]} 33. Qxb8+ {[%clk 0:00:47]}  Kh7 {[%clk 0:00:28]} 34. Qb1 {[%clk 0:00:45]}  Qc6+ {[%clk 0:00:16]} 35. Qe4 {[%clk 0:00:44]}  Qg6 {[%clk 0:00:15]} 36. Ne3 {[%clk 0:00:40]}  Rxf2 {[%clk 0:00:14]} 37. Qxg6+ {[%clk 0:00:40]}  fxg6 {[%clk 0:00:15]} 38. Ra1 {[%clk 0:00:29]}  g5 {[%clk 0:00:14]} 39. Rd5 {[%clk 0:00:28]}  Kh6 {[%clk 0:00:09]} 40. Neg4+ {[%clk 0:00:26]} 1-0

[Event "December 5 Late 2023"]
[Site "https://www.chess.com"]
[Date "2023.12.05"]
[Round "6"]
[White "Ambartsumova, Karina"]
[Black "Mazurkiewicz, Michal"]
[Result "1-0"]
[Board "61"]
[TimeControl "180+1"]
[WhiteFideId "4166299"]
[BlackFideId "1124943"]
[WhiteElo "2645"]
[BlackElo "2504"]
[WhiteTeam "RUS"]
[BlackTeam "POL"]
[WhiteClock "0:00:19"]
[BlackClock "0:00:36"]

1. d4 {[%clk 0:03:00]}  Nf6 {[%clk 0:02:56]} 2. c4 {[%clk 0:03:01]}  e5 {[%clk 0:02:56]} 3. dxe5 {[%clk 0:02:57]}  Ng4 {[%clk 0:02:57]} 4. Bf4 {[%clk 0:02:57]}  Nc6 {[%clk 0:02:56]} 5. Nf3 {[%clk 0:02:57]}  Bb4+ {[%clk 0:02:56]} 6. Nbd2 {[%clk 0:02:49]}  Qe7 {[%clk 0:02:56]} 7. a3 {[%clk 0:02:45]}  Ngxe5 {[%clk 0:02:42]} 8. Nxe5 {[%clk 0:02:29]}  Nxe5 {[%clk 0:02:38]} 9. e3 {[%clk 0:02:22]}  Bc5 {[%clk 0:02:33]} 10. Be2 {[%clk 0:02:03]}  a5 {[%clk 0:02:32]} 11. b4 {[%clk 0:01:47]}  Bd4 {[%clk 0:02:19]} 12. Rb1 {[%clk 0:01:40]}  axb4 {[%clk 0:02:14]} 13. axb4 {[%clk 0:01:38]}  d6 {[%clk 0:02:05]} 14. O-O {[%clk 0:01:37]}  Ng6 {[%clk 0:02:05]} 15. Bg3 {[%clk 0:01:33]}  Be5 {[%clk 0:02:02]} 16. f4 {[%clk 0:01:02]}  Bf6 {[%clk 0:01:47]} 17. e4 {[%clk 0:01:03]}  O-O {[%clk 0:01:29]} 18. Bd3 {[%clk 0:00:56]}  Ra2 {[%clk 0:01:14]} 19. Nf3 {[%clk 0:00:54]}  Bg4 {[%clk 0:00:59]} 20. Qb3 {[%clk 0:00:50]}  Rfa8 {[%clk 0:00:53]} 21. c5 {[%clk 0:00:27]}  R8a3 {[%clk 0:00:43]} 22. Qc4 {[%clk 0:00:20]}  Rc3 {[%clk 0:00:41]} 23. Qxa2 {[%clk 0:00:20]}  Rxd3 {[%clk 0:00:41]} 24. Qa8+ {[%clk 0:00:19]}  Nf8 {[%clk 0:00:41]} 25. Qxb7 {[%clk 0:00:20]}  Qxe4 {[%clk 0:00:36]} 26. Qxe4 {[%clk 0:00:19]} 1-0

[Event "December 5 Late 2023"]
[Site "https://www.chess.com"]
[Date "2023.12.05"]
[Round "6"]
[White "Krishnan, Varun"]
[Black "Bold, Andre"]
[Result "0-1"]
[Board "62"]
[TimeControl "180+1"]
[WhiteFideId "5054508"]
[BlackFideId "16208471"]
[WhiteElo "2644"]
[BlackElo "2497"]
[WhiteTeam "USA"]
[BlackTeam "GER"]
[WhiteClock "0:00:13"]
[BlackClock "0:00:16"]

1. d4 {[%clk 0:03:00]}  d5 {[%clk 0:02:59]} 2. c4 {[%clk 0:02:57]}  c6 {[%clk 0:02:59]} 3. Nc3 {[%clk 0:02:54]}  Nf6 {[%clk 0:02:59]} 4. Nf3 {[%clk 0:02:52]}  dxc4 {[%clk 0:02:59]} 5. a4 {[%clk 0:02:50]}  Bf5 {[%clk 0:02:59]} 6. e3 {[%clk 0:02:50]}  e6 {[%clk 0:02:59]} 7. Bxc4 {[%clk 0:02:50]}  Bb4 {[%clk 0:03:00]} 8. O-O {[%clk 0:02:50]}  O-O {[%clk 0:03:00]} 9. Qe2 {[%clk 0:02:48]}  Nbd7 {[%clk 0:03:01]} 10. e4 {[%clk 0:02:44]}  Bg6 {[%clk 0:03:01]} 11. e5 {[%clk 0:02:37]}  Nd5 {[%clk 0:03:02]} 12. Bd2 {[%clk 0:02:34]}  Nxc3 {[%clk 0:02:56]} 13. bxc3 {[%clk 0:02:34]}  Be7 {[%clk 0:02:56]} 14. Bd3 {[%clk 0:02:28]}  Bxd3 {[%clk 0:02:51]} 15. Qxd3 {[%clk 0:02:29]}  c5 {[%clk 0:02:50]} 16. Rfb1 {[%clk 0:02:27]}  cxd4 {[%clk 0:02:47]} 17. cxd4 {[%clk 0:02:14]}  Rb8 {[%clk 0:02:34]} 18. a5 {[%clk 0:02:13]}  Nc5 {[%clk 0:02:30]} 19. Qc2 {[%clk 0:01:50]}  Na6 {[%clk 0:02:30]} 20. Qe4 {[%clk 0:01:43]}  Qd7 {[%clk 0:02:24]} 21. Rb2 {[%clk 0:01:40]}  Rfc8 {[%clk 0:02:12]} 22. Rab1 {[%clk 0:01:39]}  Rc7 {[%clk 0:02:12]} 23. h4 {[%clk 0:01:38]}  h6 {[%clk 0:01:42]} 24. Rb5 {[%clk 0:01:29]}  Bf8 {[%clk 0:01:40]} 25. d5 {[%clk 0:01:10]}  exd5 {[%clk 0:01:40]} 26. Rxd5 {[%clk 0:01:09]}  Qc6 {[%clk 0:01:35]} 27. Nd4 {[%clk 0:01:02]}  Qe8 {[%clk 0:01:26]} 28. Qg4 {[%clk 0:00:41]}  Kh8 {[%clk 0:01:21]} 29. e6 {[%clk 0:00:34]}  fxe6 {[%clk 0:01:18]} 30. Nxe6 {[%clk 0:00:34]}  Rd7 {[%clk 0:01:06]} 31. Rf5 {[%clk 0:00:16]}  Bc5 {[%clk 0:00:49]} 32. Bc3 {[%clk 0:00:13]}  Qxe6 {[%clk 0:00:44]} 33. Rf8+ {[%clk 0:00:13]}  Rxf8 {[%clk 0:00:45]} 34. Qxe6 {[%clk 0:00:13]}  Re7 {[%clk 0:00:40]} 35. Qxh6+ {[%clk 0:00:11]}  Kg8 {[%clk 0:00:40]} 36. Qg5 {[%clk 0:00:08]}  Rxf2 {[%clk 0:00:38]} 37. Kh1 {[%clk 0:00:05]}  Rfe2 {[%clk 0:00:33]} 38. Rd1 {[%clk 0:00:05]}  Rf7 {[%clk 0:00:13]} 39. Rd8+ {[%clk 0:00:05]}  Bf8 {[%clk 0:00:14]} 40. Rxf8+ {[%clk 0:00:04]}  Kxf8 {[%clk 0:00:14]} 41. Qd8+ {[%clk 0:00:04]}  Re8 {[%clk 0:00:14]} 42. Qd6+ {[%clk 0:00:04]}  Kg8 {[%clk 0:00:14]} 43. Qd5 {[%clk 0:00:04]}  Re7 {[%clk 0:00:11]} 44. Bd4 {[%clk 0:00:04]}  Rd7 {[%clk 0:00:11]} 45. Qe5 {[%clk 0:00:04]}  Rfe7 {[%clk 0:00:11]} 46. Qf4 {[%clk 0:00:04]}  Nc7 {[%clk 0:00:11]} 47. Bxa7 {[%clk 0:00:03]}  Nd5 {[%clk 0:00:11]} 48. Qb8+ {[%clk 0:00:03]}  Kh7 {[%clk 0:00:11]} 49. Qg3 {[%clk 0:00:03]}  Nf6 {[%clk 0:00:12]} 50. Qg5 {[%clk 0:00:03]}  Rd5 {[%clk 0:00:11]} 51. Qg3 {[%clk 0:00:02]}  Rd1+ {[%clk 0:00:09]} 52. Kh2 {[%clk 0:00:02]}  Rd5 {[%clk 0:00:10]} 53. Qf3 {[%clk 0:00:03]}  Ree5 {[%clk 0:00:09]} 54. Bf2 {[%clk 0:00:03]}  Rf5 {[%clk 0:00:09]} 55. Qg3 {[%clk 0:00:03]}  Rh5 {[%clk 0:00:07]} 56. Qf3 {[%clk 0:00:03]}  Rdf5 {[%clk 0:00:06]} 57. Qe2 {[%clk 0:00:03]}  Rxf2 {[%clk 0:00:05]} 58. Qxf2 {[%clk 0:00:03]}  Ng4+ {[%clk 0:00:05]} 59. Kg3 {[%clk 0:00:04]}  Nxf2 {[%clk 0:00:06]} 60. Kxf2 {[%clk 0:00:04]}  Rxa5 {[%clk 0:00:06]} 61. Kf3 {[%clk 0:00:04]}  Ra6 {[%clk 0:00:07]} 62. Ke4 {[%clk 0:00:04]}  Kh6 {[%clk 0:00:08]} 63. Kf5 {[%clk 0:00:05]}  g6+ {[%clk 0:00:08]} 64. Kg4 {[%clk 0:00:05]}  Ra4+ {[%clk 0:00:09]} 65. Kh3 {[%clk 0:00:06]}  b5 {[%clk 0:00:09]} 66. g3 {[%clk 0:00:07]}  b4 {[%clk 0:00:09]} 67. g4 {[%clk 0:00:08]}  Ra3+ {[%clk 0:00:10]} 68. Kg2 {[%clk 0:00:07]}  g5 {[%clk 0:00:11]} 69. h5 {[%clk 0:00:08]}  Rc3 {[%clk 0:00:11]} 70. Kf2 {[%clk 0:00:08]}  Rc8 {[%clk 0:00:11]} 71. Ke2 {[%clk 0:00:09]}  b3 {[%clk 0:00:12]} 72. Kd2 {[%clk 0:00:10]}  b2 {[%clk 0:00:13]} 73. Kd3 {[%clk 0:00:11]}  b1=Q+ {[%clk 0:00:13]} 74. Kd4 {[%clk 0:00:10]}  Qb6+ {[%clk 0:00:14]} 75. Ke5 {[%clk 0:00:11]}  Rc5+ {[%clk 0:00:13]} 76. Kd4 {[%clk 0:00:11]}  Qb4+ {[%clk 0:00:14]} 77. Ke3 {[%clk 0:00:12]}  Rc3+ {[%clk 0:00:14]} 78. Ke2 {[%clk 0:00:13]}  Qb2+ {[%clk 0:00:15]} 79. Kf1 {[%clk 0:00:13]}  Rc1# {[%clk 0:00:16]} 0-1

[Event "December 5 Late 2023"]
[Site "https://www.chess.com"]
[Date "2023.12.05"]
[Round "6"]
[White "Golubev, Mikhail"]
[Black "Minko, Dmitry"]
[Result "0-1"]
[Board "64"]
[TimeControl "180+1"]
[WhiteFideId "14100983"]
[BlackFideId "24188468"]
[WhiteElo "2630"]
[BlackElo "2489"]
[WhiteTeam "UKR"]
[BlackTeam "FID"]
[WhiteClock "0:00:00"]
[BlackClock "0:00:01"]

1. e4 {[%clk 0:03:00]}  e5 {[%clk 0:02:59]} 2. Nf3 {[%clk 0:03:00]}  Nc6 {[%clk 0:02:59]} 3. Bc4 {[%clk 0:03:01]}  Nf6 {[%clk 0:02:59]} 4. Ng5 {[%clk 0:03:01]}  d5 {[%clk 0:02:59]} 5. exd5 {[%clk 0:03:01]}  Nd4 {[%clk 0:02:59]} 6. c3 {[%clk 0:03:00]}  b5 {[%clk 0:03:00]} 7. Bf1 {[%clk 0:02:59]}  Nxd5 {[%clk 0:03:00]} 8. Nxf7 {[%clk 0:02:47]}  Kxf7 {[%clk 0:03:00]} 9. cxd4 {[%clk 0:02:47]}  exd4 {[%clk 0:02:00]} 10. Bxb5 {[%clk 0:02:46]}  Bd6 {[%clk 0:01:47]} 11. Qf3+ {[%clk 0:02:35]}  Nf6 {[%clk 0:01:20]} 12. Bc4+ {[%clk 0:02:18]}  Kg6 {[%clk 0:01:04]} 13. O-O {[%clk 0:02:03]}  Bg4 {[%clk 0:00:58]} 14. Qb3 {[%clk 0:01:55]}  Rf8 {[%clk 0:00:43]} 15. Bd3+ {[%clk 0:01:52]}  Kh6 {[%clk 0:00:43]} 16. h3 {[%clk 0:01:31]}  Bxh3 {[%clk 0:00:31]} 17. gxh3 {[%clk 0:01:20]}  Nh5 {[%clk 0:00:19]} 18. Be2 {[%clk 0:01:12]}  Nf4 {[%clk 0:00:19]} 19. d3 {[%clk 0:00:46]}  Qg5+ {[%clk 0:00:17]} 20. Bg4 {[%clk 0:00:46]}  Rae8 {[%clk 0:00:13]} 21. Qd1 {[%clk 0:00:32]}  Kg6 {[%clk 0:00:11]} 22. Qf3 {[%clk 0:00:25]}  h5 {[%clk 0:00:08]} 23. Bxf4 {[%clk 0:00:22]}  Rxf4 {[%clk 0:00:08]} 24. Qc6 {[%clk 0:00:20]}  Ref8 {[%clk 0:00:07]} 25. Nd2 {[%clk 0:00:08]}  hxg4 {[%clk 0:00:07]} 26. Ne4 {[%clk 0:00:07]}  Qh4 {[%clk 0:00:06]} 27. Ng3 {[%clk 0:00:06]}  Qxh3 {[%clk 0:00:05]} 28. Rae1 {[%clk 0:00:04]}  Rxf2 {[%clk 0:00:04]} 29. Re6+ {[%clk 0:00:03]}  R2f6 {[%clk 0:00:03]} 30. Rfxf6+ {[%clk 0:00:03]}  Rxf6 {[%clk 0:00:03]} 31. Qe4+ {[%clk 0:00:00]}  Kg5 {[%clk 0:00:01]} 0-1

[Event "December 5 Late 2023"]
[Site "https://www.chess.com"]
[Date "2023.12.05"]
[Round "6"]
[White "Gubajdullin, Alexei"]
[Black "Bogaudinov, Rushan"]
[Result "1-0"]
[Board "68"]
[TimeControl "180+1"]
[WhiteFideId "4141202"]
[BlackFideId "4129288"]
[WhiteElo "2610"]
[BlackElo "2446"]
[WhiteTeam "RUS"]
[BlackTeam "RUS"]
[WhiteClock "0:00:24"]
[BlackClock "0:00:00"]

1. d4 {[%clk 0:02:58]}  Nf6 {[%clk 0:02:57]} 2. Nf3 {[%clk 0:02:57]}  e6 {[%clk 0:02:55]} 3. Bf4 {[%clk 0:02:50]}  b6 {[%clk 0:02:55]} 4. e3 {[%clk 0:02:50]}  Bb7 {[%clk 0:02:55]} 5. Be2 {[%clk 0:02:50]}  Nh5 {[%clk 0:02:48]} 6. Bg5 {[%clk 0:02:49]}  Be7 {[%clk 0:02:46]} 7. Bxe7 {[%clk 0:02:49]}  Qxe7 {[%clk 0:02:47]} 8. O-O {[%clk 0:02:49]}  O-O {[%clk 0:02:41]} 9. Ne5 {[%clk 0:02:49]}  Nf6 {[%clk 0:02:41]} 10. Bf3 {[%clk 0:02:49]}  d5 {[%clk 0:02:36]} 11. c4 {[%clk 0:02:49]}  c6 {[%clk 0:02:35]} 12. Nc3 {[%clk 0:02:49]}  Nbd7 {[%clk 0:02:35]} 13. Nxd7 {[%clk 0:02:48]}  Nxd7 {[%clk 0:02:34]} 14. cxd5 {[%clk 0:02:46]}  exd5 {[%clk 0:02:27]} 15. Qa4 {[%clk 0:02:46]}  Qd6 {[%clk 0:02:22]} 16. b4 {[%clk 0:02:46]}  a6 {[%clk 0:02:21]} 17. Qb3 {[%clk 0:02:45]}  b5 {[%clk 0:02:20]} 18. a4 {[%clk 0:02:37]}  Nb6 {[%clk 0:02:20]} 19. a5 {[%clk 0:02:32]}  Nc4 {[%clk 0:02:20]} 20. Ra2 {[%clk 0:02:32]}  Rae8 {[%clk 0:02:14]} 21. Be2 {[%clk 0:02:31]}  Bc8 {[%clk 0:02:08]} 22. Bxc4 {[%clk 0:02:30]}  dxc4 {[%clk 0:02:06]} 23. Qb1 {[%clk 0:02:30]}  f5 {[%clk 0:01:54]} 24. Rd2 {[%clk 0:02:28]}  Be6 {[%clk 0:01:53]} 25. f3 {[%clk 0:02:25]}  Bd5 {[%clk 0:01:51]} 26. Re1 {[%clk 0:02:25]}  Qh6 {[%clk 0:01:51]} 27. Rde2 {[%clk 0:02:17]}  Qg6 {[%clk 0:01:28]} 28. e4 {[%clk 0:02:16]}  fxe4 {[%clk 0:01:28]} 29. fxe4 {[%clk 0:02:16]}  Be6 {[%clk 0:01:28]} 30. d5 {[%clk 0:02:10]}  Bg4 {[%clk 0:01:26]} 31. Re3 {[%clk 0:01:50]}  cxd5 {[%clk 0:01:17]} 32. exd5 {[%clk 0:01:44]}  Rxe3 {[%clk 0:01:16]} 33. Rxe3 {[%clk 0:01:43]}  Qf6 {[%clk 0:01:14]} 34. Qe1 {[%clk 0:01:38]}  Qd4 {[%clk 0:01:10]} 35. h3 {[%clk 0:01:26]}  Bf5 {[%clk 0:01:08]} 36. Kh2 {[%clk 0:01:17]}  h6 {[%clk 0:01:04]} 37. Re7 {[%clk 0:01:14]}  Rf7 {[%clk 0:00:52]} 38. Qe5 {[%clk 0:01:05]}  Qxe5+ {[%clk 0:00:50]} 39. Rxe5 {[%clk 0:01:05]}  h5 {[%clk 0:00:41]} 40. Re8+ {[%clk 0:01:04]}  Kh7 {[%clk 0:00:41]} 41. Ra8 {[%clk 0:00:55]}  Rf6 {[%clk 0:00:40]} 42. Rb8 {[%clk 0:00:53]}  h4 {[%clk 0:00:38]} 43. Rb6 {[%clk 0:00:52]}  Kg8 {[%clk 0:00:34]} 44. Rxf6 {[%clk 0:00:47]}  gxf6 {[%clk 0:00:34]} 45. g3 {[%clk 0:00:47]}  hxg3+ {[%clk 0:00:34]} 46. Kxg3 {[%clk 0:00:47]}  Kf7 {[%clk 0:00:34]} 47. h4 {[%clk 0:00:47]}  Bg6 {[%clk 0:00:33]} 48. Kg4 {[%clk 0:00:45]}  Ke7 {[%clk 0:00:34]} 49. h5 {[%clk 0:00:46]}  Bh7 {[%clk 0:00:33]} 50. h6 {[%clk 0:00:42]}  Kd6 {[%clk 0:00:32]} 51. Kf4 {[%clk 0:00:42]}  Bg6 {[%clk 0:00:30]} 52. Ke3 {[%clk 0:00:42]}  Ke5 {[%clk 0:00:29]} 53. Ne2 {[%clk 0:00:40]}  Bh7 {[%clk 0:00:22]} 54. Nc3 {[%clk 0:00:39]}  f5 {[%clk 0:00:21]} 55. Nxb5 {[%clk 0:00:36]}  Kxd5 {[%clk 0:00:20]} 56. Nc3+ {[%clk 0:00:33]}  Ke5 {[%clk 0:00:18]} 57. b5 {[%clk 0:00:33]}  f4+ {[%clk 0:00:17]} 58. Kf2 {[%clk 0:00:31]}  axb5 {[%clk 0:00:14]} 59. a6 {[%clk 0:00:30]}  b4 {[%clk 0:00:12]} 60. a7 {[%clk 0:00:30]}  bxc3 {[%clk 0:00:13]} 61. a8=Q {[%clk 0:00:31]}  c2 {[%clk 0:00:12]} 62. Qa1+ {[%clk 0:00:30]}  Kd5 {[%clk 0:00:12]} 63. Qc3 {[%clk 0:00:29]}  Kc5 {[%clk 0:00:12]} 64. Kf3 {[%clk 0:00:29]}  Bd3 {[%clk 0:00:10]} 65. Kxf4 {[%clk 0:00:29]}  Kd5 {[%clk 0:00:10]} 66. Kg5 {[%clk 0:00:28]}  Ke4 {[%clk 0:00:11]} 67. Kf6 {[%clk 0:00:27]}  Ke3 {[%clk 0:00:11]} 68. Qe1+ {[%clk 0:00:24]}  Kd4 {[%clk 0:00:10]} 69. Kg7 {[%clk 0:00:23]}  Be4 {[%clk 0:00:06]} 70. h7 {[%clk 0:00:23]}  Bxh7 {[%clk 0:00:06]} 71. Kxh7 {[%clk 0:00:23]}  Kd3 {[%clk 0:00:06]} 72. Qc1 {[%clk 0:00:23]}  Kc3 {[%clk 0:00:06]} 73. Kg6 {[%clk 0:00:23]}  Kd3 {[%clk 0:00:06]} 74. Kf5 {[%clk 0:00:24]}  Kc3 {[%clk 0:00:00]} 75. Ke4 {[%clk 0:00:24]} 1-0